[Event "34th MPL National U14-ch 2022"]
[Site "Ahmedabad"]
[Date "2022.05.13"]
[Round "10.7"]
[White "Sahib Singh"]
[Black "Jval Saurin Patel"]
[Result "0-1"]
[ECO "C03"]
[WhiteElo "1991"]
[BlackElo "1712"]
[Annotator "TA"]
[PlyCount "70"]
[EventDate "2022.05.09"]
[EventType "swiss"]
[EventCountry "IND"]
[SourceTitle "playchess.com"]
[Source "ChessBase"]
[SourceQuality "1"]
[TimeControl "5400+30"]

{[%evp 9,70,13,44,44,50,49,58,52,60,61,77,75,74,78,72,75,77,74,118,91,135,68,68,51,45,0,0,-15,-33,-38,-44,-65,-44,-45,-27,-24,-27,-29,0,-9,79,-1,-8,-72,-85,-61,-64,-215,-195,-592,-579,-605,-525,-888,-889,-833,-681,-760,-770,-1032,-566,-29991,-29992]} 1. e4 {[%emt 0:00:02]} e6 {[%emt 0:00:14]} 2. d4 {[%emt 0:00:04]} d5 {[%emt 0:00:06]} 3. Nd2 {[%emt 0:00:03]} Be7 {[%emt 0:00:08]} 4. Bd3 {[%emt 0:02:15]} c5 {[%emt 0:00:19]} 5. dxc5 {[%emt 0:00:11]} Bxc5 {[%emt 0:01:30]} 6. Ngf3 {[%emt 0:00:46] C03: French Tarrasch: Unusual Black 3rd moves.} Nf6 {[%emt 0:03:15]} 7. O-O {[%emt 0:00:37] was the old line (7.Qe2).} O-O {[%emt 0:01:13]} 8. e5 {[%emt 0:05:01] White is slightly better.} Nfd7 {[%emt 0:00:50]} 9. Nb3 {[%emt 0:02:31][%cal Od3h7]} Be7 {[%emt 0:00:28]} 10. Re1 {[%emt 0:02:50]} Nc6 {[%emt 0:11:01]} 11. c3 {[%emt 0:01:52]} Re8 {[%emt 0:10:16]} 12. Nbd4 {[%emt 0:02:42]} Nf8 {[%emt 0:01:02]} 13. Bf4 {[%emt 0:09:39] [#]} Nxd4 $146 {[%emt 0:07:42]} ({Predecessor:} 13... f5 14. Rc1 g5 15. Bd2 Ng6 16. Qc2 Nxd4 17. Nxd4 Nf4 18. Bxf4 gxf4 {1-0 (38) Macovei,A (2352)-De Coninck,R (2137) Paleochora 2017}) 14. Nxd4 {[%emt 0:04:11]} Ng6 {[%emt 0:03:27] [#]} 15. Bg3 {[%emt 0:00:30]} (15. Qh5 $1 $16) 15... Bd7 $14 {[%emt 0:01:17]} 16. Qh5 {[%emt 0:09:38][%cal Og3f4]} Qb6 {[%emt 0:04:54]} 17. Re2 {[%emt 0:01:17][%cal Og3f4]} Bc5 $1 {[%emt 0:04:51]} 18. Nf3 {[%emt 0:00:21] Ng5 is the strong threat.} Bb5 {[%emt 0:00:37]} 19. Bxb5 {[%emt 0:03:05]} Qxb5 {[%emt 0:01:07]} 20. Rae1 {[%emt 0:00:06]} Rad8 {[%emt 0:03:51]} 21. Qg4 {[%emt 0:17:49]} (21. a4 Qxa4 22. h3 Rc8 $17) 21... a5 {[%emt 0:22:37]} 22. h4 {[%emt 0:07:54]} Ne7 {[%emt 0:03:13]} 23. Bf4 {[%emt 0:03:50]} Qd3 {[%emt 0:01:36]} 24. Bg5 {[%emt 0:03:40]} Kh8 {[%emt 0:05:18]} (24... Rc8 $11 {remains equal.}) 25. h5 {[%emt 0:03:51]} ({White should play} 25. Rd2 $16 Qb5 26. Qf4) 25... h6 $11 {[%emt 0:00:18]} 26. b4 {[%emt 0:04:33]} (26. Rd2 $11 {keeps the balance.} Qa6 27. Be3) 26... axb4 $17 {[%emt 0:01:19]} ({Don't take} 26... hxg5 27. bxc5 Nf5 28. Qxg5 $11 (28. Nxg5 Re7 $11)) (26... Qxc3 $2 27. Bd2 (27. bxc5 hxg5 28. Nxg5 Rf8 $14) 27... Qc4 28. Qxc4 Bxf2+ 29. Kxf2 $18) 27. cxb4 {[%emt 0:00:06]} Bb6 {[%emt 0:00:29]} ({Don't do} 27... hxg5 28. bxc5 Nf5 29. Nxg5 $16) 28. Bh4 {[%emt 0:07:49] This move loses the game for White.} ({White should try} 28. Rd2 $15 Qc3 29. Be3 Bxe3 30. Rxe3) 28... Rc8 $19 {[%emt 0:00:21] Hoping for ...Rc4.} 29. Bf6 $2 {[%emt 0:03:13]} (29. Bxe7 {is tougher.} Rc4 30. Qh3 Rxe7 31. Nd2 Qxh3 32. gxh3) 29... Nf5 {[%emt 0:04:16]} 30. Rd2 {[%emt 0:00:55]} Qc4 {[%emt 0:00:29]} 31. Qh3 {[%emt 0:00:04]} gxf6 {[%emt 0:00:55]} 32. exf6 {[%emt 0:00:06]} Bc7 {[%emt 0:00:33]} 33. Rde2 {[%emt 0:01:16]} Rg8 {[%emt 0:01:47]} 34. Re5 {[%emt 0:03:19]} Qg4 {[%emt 0:00:16]} 35. Qh1 {[%emt 0:00:16]} Qxf3 {[%emt 0:00:15] Weighted Error Value: White=0.80/Black=0.35} 0-1

[Event "34th MPL National U14-ch 2022"]
[Site "Ahmedabad"]
[Date "2022.05.13"]
[Round "10.8"]
[White "Adireddy Arjun"]
[Black "Gandhi, Aakash"]
[Result "1-0"]
[ECO "C14"]
[WhiteElo "1898"]
[BlackElo "1698"]
[Annotator "NA RC COMBH"]
[PlyCount "105"]
[EventDate "2022.05.09"]
[EventType "swiss"]
[EventCountry "IND"]
[SourceTitle "playchess.com"]
[Source "ChessBase"]
[SourceQuality "1"]
[TimeControl "5400+30"]

1. e4 {[%emt 0:00:15]} e6 {[%emt 0:00:31]} 2. d4 {[%emt 0:00:15]} d5 {[%emt 0:00:17]} 3. Nc3 {[%emt 0:00:18]} Nf6 {[%emt 0:00:12]} 4. Bg5 {[%emt 0:00:25]} Be7 {[%emt 0:00:10]} 5. e5 {[%emt 0:00:08]} Nfd7 {[%emt 0:00:11]} 6. Bxe7 {[%emt 0:01:28]} Qxe7 {[%emt 0:00:12]} 7. f4 {[%emt 0:00:04]} O-O {[%emt 0:00:29]} 8. Nf3 {[%emt 0:01:02]} c5 {[%emt 0:00:12]} 9. dxc5 {[%emt 0:00:18]} Nc6 {[%emt 0:00:23]} 10. Bd3 {[%emt 0:01:19]} f6 {[%emt 0:00:35]} (10... h6 $11) 11. exf6 {[%emt 0:01:11]} Qxf6 {[%emt 0:00:25]} 12. g3 {[%emt 0:01:45]} Nxc5 {[%emt 0:00:29]} 13. O-O {[%emt 0:01:56]} Bd7 {[%emt 0:04:25]} 14. Qd2 {[%emt 0:02:56]} Be8 {[%emt 0:01:57]} 15. Rae1 {[%emt 0:01:44]} Bh5 {[%emt 0:02:29]} 16. Ne5 {[%emt 0:08:20]} Nxe5 {[%emt 0:02:51]} 17. Rxe5 {[%emt 0:00:11]} ({Reject} 17. fxe5 Qe7 $11) 17... Bf7 {[%emt 0:00:08]} 18. b3 {[%emt 0:09:53]} (18. Bf5 $5 {[%cal Rb2b4]}) 18... Rac8 $14 {[%emt 0:05:28]} 19. Nb5 {[%emt 0:03:04]} Bg6 {[%emt 0:01:58]} (19... a6 $11 {keeps the balance.} 20. Nd6 Rc6 21. Nxf7 Qxf7) 20. Bxg6 {[%emt 0:01:05]} hxg6 {[%emt 0:00:57]} 21. Qe3 {[%emt 0:16:01]} b6 {[%emt 0:09:35]} 22. Nd4 {[%emt 0:10:06]} Rce8 {[%emt 0:01:20]} 23. Re1 {[%emt 0:07:42]} Ne4 {[%emt 0:05:57]} 24. c4 {[%emt 0:00:01]} ({Better is} 24. Qd3) 24... g5 {[%emt 0:00:12]} 25. cxd5 {[%emt 0:00:19]} exd5 {[%emt 0:00:32]} 26. Rxe8 {[%emt 0:00:14]} ({Much worse is} 26. Rxd5 $6 gxf4 27. Qxf4 Qxf4 28. gxf4 Rxf4 $11) 26... Rxe8 {[%emt 0:00:08]} 27. fxg5 {[%emt 0:00:05]} Qg6 {[%emt 0:00:07] [#]} 28. Nf3 {[%emt 0:04:14]} ({Better is} 28. h4 $1 $16) 28... Rf8 {[%emt 0:10:22]} 29. Kg2 {[%emt 0:06:31]} Rc8 {[%emt 0:02:06]} 30. Rc1 {[%emt 0:00:52]} Rc5 {[%emt 0:01:56]} 31. b4 {[%emt 0:02:50]} Rxc1 {[%emt 0:01:41]} 32. Qxc1 {[%emt 0:00:03]} Qf5 {[%emt 0:01:01]} 33. Qf4 {[%emt 0:08:19]} Qc8 {[%emt 0:00:17]} 34. g6 {[%emt 0:00:32]} Nf6 {[%emt 0:03:37]} 35. Nd4 {[%emt 0:02:10]} Qe8 {[%emt 0:02:23]} 36. Qf5 {[%emt 0:00:32]} Qa4 {[%emt 0:01:03]} 37. Qc8+ {[%emt 0:01:30]} Qe8 {[%emt 0:00:51]} 38. Qxe8+ {[%emt 0:00:33]} Nxe8 {[%emt 0:00:04]} 39. Ne6 {[%emt 0:00:01]} Nf6 {[%emt 0:00:49]} 40. Kf3 {[%emt 0:00:36]} Ne4 {[%emt 0:00:12]} 41. h4 {[%emt 0:02:22]} Nc3 {[%emt 0:00:43]} 42. a3 {[%emt 0:02:18]} b5 {[%emt 0:01:32]} 43. Ke3 {[%emt 0:03:34]} Nb1 {[%emt 0:01:13]} 44. Kd4 {[%emt 0:00:01]} Nxa3 {[%emt 0:00:08]} 45. Kxd5 {[%emt 0:00:02]} Nb1 {[%emt 0:00:28]} 46. Kc5 {[%emt 0:01:11]} Nc3 {[%emt 0:00:07]} 47. g4 {[%emt 0:00:04]} Kh8 {[%emt 0:00:18]} 48. h5 {[%emt 0:00:40]} Kg8 {[%emt 0:00:06]} 49. g5 {[%emt 0:00:31]} Kh8 {[%emt 0:00:10]} 50. h6 {[%emt 0:00:06]} gxh6 {[%emt 0:00:08]} 51. gxh6 {[%emt 0:00:04]} Kg8 {[%emt 0:00:06]} 52. h7+ {[%emt 0:00:05]} Kh8 {[%emt 0:00:04]} 53. Ng5 {[%emt 0:00:07]} 1-0

[Event "34th MPL National U14-ch 2022"]
[Site "Ahmedabad"]
[Date "2022.05.13"]
[Round "10.9"]
[White "Md Imran"]
[Black "Raihaan Zahid"]
[Result "1-0"]
[ECO "D02"]
[WhiteElo "2122"]
[BlackElo "1457"]
[Annotator "TA"]
[PlyCount "95"]
[EventDate "2022.05.09"]
[EventType "swiss"]
[EventCountry "IND"]
[SourceTitle "playchess.com"]
[Source "ChessBase"]
[SourceQuality "1"]
[TimeControl "5400+30"]

{[%evp 12,95,-1,0,24,4,44,41,47,50,65,52,124,118,116,118,127,121,167,157,204,127,153,90,76,25,84,45,73,46,61,72,56,55,76,50,85,8,40,42,65,50,107,107,106,71,101,101,101,101,108,108,108,101,101,27,101,50,25,24,79,0,0,0,0,0,0,0,57,29,33,47,258,268,408,415,394,405,410,398,479,481,473,427,395,338]} 1. d4 {[%emt 0:00:04]} Nf6 {[%emt 1:31:00]} 2. Nf3 {[%emt 0:00:05]} e6 {[%emt 0:00:00]} 3. Bf4 {[%emt 0:00:07]} d5 {[%emt 0:00:00]} 4. e3 {[%emt 0:00:17]} c5 {[%emt 0:00:00]} 5. Nbd2 {[%emt 0:00:34]} Nc6 {[%emt 0:00:00]} 6. c3 {[%emt 0:00:19]} Bd6 {[%emt 0:00:00] 6...cxd4 injects fresh life into this line.} 7. Bg3 {[%emt 0:00:10]} b6 {[%emt 0:00:00] D02: 1 d4 d5 2 Nf3 sidelines, including 2...Nf6 3 g3 and 2...Nf6 3 Bf4.} 8. Ne5 {[%emt 0:00:31]} Bxe5 {[%emt 0:00:00]} (8... Bb7 {keeps more tension.} 9. Bb5 Rc8 10. Bh4 O-O) 9. dxe5 {[%emt 0:00:05] [#]} ({But not} 9. Bxe5 Nxe5 10. dxe5 Nd7 $11) 9... Nd7 $146 {[%emt 0:00:00] White is slightly better.} (9... Ne4 10. Nxe4 dxe4 11. Qa4 Qc7 12. Qxe4 Bb7 13. O-O-O Rd8 14. Rxd8+ Qxd8 15. Qg4 O-O) ({Predecessor:} 9... Ne4 10. Nxe4 dxe4 11. Qa4 Qc7 12. Qxe4 Bb7 13. O-O-O Rd8 14. Rxd8+ Qxd8 15. Qg4 O-O {0-1 (30) Csukerda,A (2006)-Bukta,T (1978) Hungary 2012}) 10. f4 {[%emt 0:03:27]} Bb7 {[%emt 0:00:00]} 11. e4 {[%emt 0:01:40]} Qc7 {[%emt 0:00:00]} (11... Ne7) (11... O-O $14) 12. exd5 $16 {[%emt 0:00:16]} exd5 {[%emt 0:00:00]} 13. Bd3 {[%emt 0:00:18]} O-O-O {[%emt 0:00:00]} 14. O-O {[%emt 0:01:00]} Rde8 {[%emt 0:00:00]} (14... c4 $16 {might work better.}) 15. Nf3 $18 {[%emt 0:00:42]} f6 {[%emt 0:00:00]} (15... h5 $16 16. Qe1 Nf6) 16. Bf5 {[%emt 0:02:28]} (16. Bc2) 16... g6 {[%emt 0:00:00] [#]} 17. Bh3 {[%emt 0:00:02]} (17. Bxd7+ Qxd7 18. exf6) (17. Bc2 $142 $1) 17... f5 $16 {[%emt 0:00:00]} 18. Ng5 {[%emt 0:01:13]} (18. Qd2) (18. Qd2 $16) 18... Nd8 {[%emt 0:00:00]} (18... Nf8) (18... Nf8 $1 $11) 19. Bf2 {[%emt 0:00:39]} (19. a4 {feels hotter.} c4 20. a5 bxa5 21. Qa4) 19... Qc6 {[%emt 0:00:00]} 20. b4 {[%emt 0:00:35]} h6 {[%emt 0:00:00]} 21. Nf3 {[%emt 0:00:01]} Ne6 {[%emt 0:00:00]} 22. Be3 {[%emt 0:00:20]} Kb8 {[%emt 0:00:00]} 23. a4 {[%emt 0:00:15]} a5 {[%emt 0:00:00]} (23... d4 24. cxd4 cxb4) 24. b5 {[%emt 0:00:50]} (24. bxa5 bxa5 25. g3) (24. bxc5 $16 {Strongly threatening Nd4.} bxc5 25. g3) 24... Qc8 {[%emt 0:00:00]} 25. g3 {[%emt 0:00:49]} Ndf8 {[%emt 0:00:00]} 26. Ra2 {[%emt 0:00:17]} h5 {[%emt 0:00:00]} (26... Rg8) (26... Rd8 $14) 27. Rd2 {[%emt 0:00:24]} Rd8 {[%emt 0:00:00]} 28. Qe2 {[%emt 0:00:27]} Rh7 {[%emt 0:00:00]} 29. Rfd1 {[%emt 0:00:24]} Rhd7 {[%emt 0:00:00][%cal Od5d4]} 30. Bg2 {[%emt 0:00:11]} Ka7 {[%emt 0:00:00]} 31. h3 {[%emt 0:00:13]} Kb8 {[%emt 0:00:00]} 32. Qf2 {[%emt 0:00:12]} Nc7 {[%emt 0:00:00]} 33. Ng5 {[%emt 0:00:58]} (33. Qf1 $16) 33... Re7 {[%emt 0:00:00]} (33... Nce6) (33... Nce6 $11) 34. Bxc5 {[%emt 0:00:57]} bxc5 $14 {[%emt 0:00:13]} 35. Qxc5 {[%emt 0:00:02]} Red7 {[%emt 0:01:30] [#]} (35... Rdd7 $11 {keeps the balance.}) 36. Qb6 {[%emt 0:01:36] 0x0.001df4b0015cdp-1022s more active pieces.} (36. b6 Na6 37. Qxa5) ({White should try} 36. b6 $1 $16 {[%cal Rb6c7]} Na6 37. Qxa5) 36... Na8 $11 {[%emt 0:01:59][%csl LRb6,LRc3]} 37. Qxa5 {[%emt 0:00:01] Hoping for b6.} Qc5+ {[%emt 0:00:10]} 38. Kh2 {[%emt 0:00:18] Dancing on a razor blade.} Nb6 {[%emt 0:01:13] White must now prevent ...Nc4.} 39. Rd4 {[%emt 0:01:34]} Ba8 {[%emt 0:01:48]} ({Black should play} 39... Rc8 $11) 40. Qb4 $36 {[%emt 0:01:26][%mdl 2048] White is pushing.} (40. e6 $5 {[%cal Re6d7]} Re7 41. Rc4 Qxc4 42. Qxb6+ Kc8 43. Nf7 $14) 40... Qxb4 {[%emt 0:00:44]} 41. Rxb4 {[%emt 0:00:59] Threatens to win with a5.} ({Don't play} 41. cxb4 Nxa4 42. e6 Re7 43. Bxd5 Bxd5 44. Rxd5 Rde8 45. Rd8+ Kc7 46. Rxe8 Rxe8 $11) 41... Nc4 {[%emt 0:01:17] Black cannot hold the game after this.} (41... Rc8 $1 $14) 42. e6 $18 {[%emt 1:24:44]} Re7 {[%emt 0:00:17] [#]} (42... Rc7 $142 43. e7 Rxe7) 43. Rxc4 $1 {[%emt 0:00:00][%mdl 576] Pin} Nxe6 {[%emt 0:00:36]} 44. Nxe6 {[%emt 0:00:00]} Rxe6 {[%emt 0:00:01]} 45. Rcd4 {[%emt 0:00:00]} Re2 {[%emt 0:00:29]} 46. R1d2 {[%emt 0:00:00]} Rde8 {[%emt 0:00:28]} 47. Rxe2 {[%emt 0:00:00]} Rxe2 {[%emt 0:00:08]} 48. c4 {[%emt 0:00:00] Weighted Error Value: White=0.20 (precise) /Black=0.33} 1-0

[Event "34th MPL National U14-ch 2022"]
[Site "Ahmedabad"]
[Date "2022.05.13"]
[Round "10.10"]
[White "Daakshin Arun"]
[Black "Ajay Santhosh Parvathareddy"]
[Result "1/2-1/2"]
[ECO "D94"]
[WhiteElo "2016"]
[BlackElo "1563"]
[Annotator "TA"]
[PlyCount "106"]
[EventDate "2022.05.09"]
[EventType "swiss"]
[EventCountry "IND"]
[SourceTitle "playchess.com"]
[Source "ChessBase"]
[SourceQuality "1"]
[TimeControl "5400+30"]

{[%evp 15,106,15,48,19,41,29,40,29,69,45,57,38,70,75,84,54,96,101,135,127,194,195,160,178,190,193,226,138,147,34,35,37,37,27,29,0,444,437,414,429,412,412,506,506,540,424,546,530,519,160,168,57,52,37,52,37,45,25,25,25,25,25,25,25,25,25,25,25,263,263,263,263,263,263,263,8,8,8,8,8,8,8,8,8,8,8,8,8,8,8,8,8,8]} 1. d4 {[%emt 0:00:04]} d5 {[%emt 0:00:22]} 2. c4 {[%emt 0:00:05]} c6 {[%emt 0:00:04]} 3. Nf3 {[%emt 0:00:14]} Nf6 {[%emt 0:00:05]} 4. e3 {[%emt 0:00:06]} g6 {[%emt 0:00:06]} 5. Nc3 {[%emt 0:00:05]} Bg7 {[%emt 0:00:04]} 6. Be2 {[%emt 0:00:05]} O-O {[%emt 0:00:08]} 7. O-O {[%emt 0:00:05]} e6 {[%emt 0:01:42]} 8. Qc2 {[%emt 0:01:49] 8.b4 is setting a new trend.} Nbd7 {[%emt 0:01:18]} 9. Rd1 {[%emt 0:03:11] D94: Grünfeld: 4 Nf3 Bg7 5 e3.} Qc7 {[%emt 0:03:02]} 10. b3 {[%emt 0:03:03]} a6 {[%emt 0:06:53]} 11. Bb2 {[%emt 0:01:25] White is slightly better.} b5 {[%emt 0:07:37] [#]} 12. Rac1 $146 {[%emt 0:01:08][%cal Rc4b5]} ({Predecessor:} 12. cxd5 cxd5 13. Rac1 Qd6 14. Nb1 Bb7 15. Qc7 Qb6 16. Ne5 Rfd8 17. Qxb6 Nxb6 18. Rc7 {1-0 (42) Head,L (1855)-Crouch,T (1641) Gatwick 2011}) 12... Qb8 {[%emt 0:04:05]} 13. a3 {[%emt 0:08:18]} dxc4 {[%emt 0:06:32]} 14. bxc4 {[%emt 0:00:26]} bxc4 {[%emt 0:00:07]} 15. Bxc4 {[%emt 0:01:03]} Bb7 {[%emt 0:00:54]} 16. Na4 {[%emt 0:07:36] Prevents c5. White is more active.} c5 {[%emt 0:05:40]} 17. Nxc5 {[%emt 0:00:22]} Nxc5 {[%emt 0:06:51]} (17... Bxf3 $16 18. gxf3 Rc8) 18. dxc5 $18 {[%emt 0:00:04]} Bxf3 {[%emt 0:06:59]} 19. gxf3 {[%emt 0:00:08]} Qc7 {[%emt 0:00:08]} 20. Be2 {[%emt 0:03:56] A strong pair of Bishops.} Rfc8 {[%emt 0:03:36]} 21. Bxf6 {[%emt 0:05:05]} Bxf6 {[%emt 0:00:11]} 22. Qa4 {[%emt 0:01:13]} ({White should try} 22. c6 $16) 22... Qc6 $1 $14 {[%emt 0:01:33]} 23. Qa5 {[%emt 0:02:19]} Bd8 {[%emt 0:02:22]} 24. Qb4 {[%emt 0:05:02]} Be7 {[%emt 0:02:14] Against Rd6} 25. Qa5 {[%emt 0:01:08]} Bxc5 $2 {[%emt 0:02:02][%mdl 8192] [#]} (25... Bd8 $11 26. Qe1 Be7) 26. Rxc5 $1 $18 {[%emt 0:00:16][%mdl 512]} Qxc5 {[%emt 0:00:16] [#]} 27. Rd8+ $3 {[%emt 0:00:04][%mdl 576] Deflection} Rxd8 {[%emt 0:00:06]} 28. Qxc5 {[%emt 0:00:04]} Rd2 {[%emt 0:00:05] [#]} 29. Bxa6 {[%emt 0:01:25][%mdl 512]} Rb8 {[%emt 0:00:25]} (29... Rdd8 30. Qc6) 30. Bc4 {[%emt 0:00:09] Against Rd5} Rbb2 {[%emt 0:00:40]} 31. e4 {[%emt 0:00:06]} Rbc2 {[%emt 0:00:08]} 32. Qb5 $2 {[%emt 0:01:24]} (32. Kg2 $18 {and the rest is easy.}) 32... Rxf2 $16 {[%emt 0:01:25]} 33. Bf1 {[%emt 0:00:27] Inhibits Rg2+.} (33. Qb8+ $18 Kg7 34. Qe5+ Kg8 35. Qb8+ Kg7 36. Qe5+ Kg8 37. Qb8+) 33... Rxf3 $14 {[%emt 0:01:04]} 34. a4 {[%emt 0:00:16][%cal Ba3a4,Ba4a5][%mdl 32] Strongly threatening a5.} Ra3 $1 {[%emt 0:00:50]} 35. a5 {[%emt 0:00:31] And now Qb8+ would win.} Rca2 {[%emt 0:00:19]} 36. a6 {[%emt 0:01:24] Threatens to win with Bc4.} Ra1 {[%emt 0:00:11]} 37. Kf2 {[%emt 0:02:03]} ({Don't do} 37. Qb8+ Kg7 $16) 37... R1a2+ $1 {[%emt 0:00:07]} 38. Be2 {[%emt 0:00:40]} Rxa6 {[%emt 0:00:08]} 39. Qxa6 {[%emt 0:00:35]} Rxa6 {[%emt 0:00:06]} 40. Bxa6 $11 {[%emt 0:00:02][%mdl 4096] Endgame KB-KP} e5 {[%emt 0:00:08]} 41. Bd3 {[%emt 0:00:53]} f5 $2 {[%emt 0:00:08]} (41... Kf8 $11) 42. exf5 $18 {[%emt 0:00:22]} gxf5 {[%emt 0:00:06]} 43. Bxf5 {[%emt 0:00:03] KB-KPP} e4 {[%emt 0:00:12]} 44. Ke3 {[%emt 0:00:34]} h5 {[%emt 0:00:07]} 45. h4 $2 {[%emt 0:00:05]} ({Better is} 45. h3 $18 h4 46. Kxe4) 45... Kh8 {[%emt 0:00:03] The position is equal.} 46. Be6 {[%emt 0:00:46]} Kg7 {[%emt 0:00:06]} 47. Bc4 {[%emt 0:00:06]} Kh8 {[%emt 0:00:04]} 48. Be2 {[%emt 0:00:04]} Kg7 {[%emt 0:00:05]} 49. Kf4 {[%emt 0:00:05]} e3 {[%emt 0:00:04]} 50. Kg5 {[%emt 0:00:04]} Kh7 {[%emt 0:00:07]} 51. Kf6 {[%emt 0:00:34]} Kg8 {[%emt 0:00:22]} 52. Kg6 {[%emt 0:00:09]} Kh8 {[%emt 0:00:05]} 53. Kf7 {[%emt 0:00:57]} Kh7 {[%emt 0:44:58] Weighted Error Value: White=0.39/Black=0.39} 1/2-1/2

[Event "34th MPL National U14-ch 2022"]
[Site "Ahmedabad"]
[Date "2022.05.14"]
[Round "11.1"]
[White "John Veny Akkarakaran"]
[Black "Abhash Roimya Saikia"]
[Result "1/2-1/2"]
[ECO "B11"]
[WhiteElo "1855"]
[BlackElo "1794"]
[Annotator "NA RC COMBH"]
[PlyCount "61"]
[EventDate "2022.05.09"]
[EventType "swiss"]
[EventCountry "IND"]
[SourceTitle "playchess.com"]
[Source "ChessBase"]
[SourceQuality "1"]
[TimeControl "5400+30"]

{[%evp 12,61,27,26,25,27,33,22,31,27,38,29,32,22,26,21,30,17,42,-15,7,14,21,3,39,30,42,36,44,37,33,33,28,0,0,0,-19,-8,0,0,0,4,0,0,14,0,0,0,0,0,3,0]} 1. e4 {[%emt 0:00:13]} c6 {[%emt 0:00:12]} 2. Nf3 {[%emt 0:00:07]} d5 {[%emt 0:00:08]} 3. Nc3 {[%emt 0:00:08]} Bg4 {[%emt 0:00:12]} 4. d4 {[%emt 0:00:06]} Nf6 {[%emt 0:01:00]} 5. h3 {[%emt 0:01:01]} Bxf3 {[%emt 0:01:06]} 6. Qxf3 {[%emt 0:00:09]} dxe4 {[%emt 0:05:58]} 7. Qe3 {[%emt 0:01:52]} e6 {[%emt 0:01:16]} 8. Nxe4 {[%emt 0:02:39]} Nxe4 {[%emt 0:08:05]} 9. Qxe4 {[%emt 0:00:07]} Qd5 {[%emt 0:00:18]} 10. Bd3 {[%emt 0:08:29]} Qxe4+ {[%emt 0:06:20]} 11. Bxe4 {[%emt 0:00:03]} Nd7 {[%emt 0:00:23]} 12. Bf4 {[%emt 0:12:07]} Nf6 {[%emt 0:09:05]} 13. Bf3 {[%emt 0:01:36]} O-O-O {[%emt 0:03:50]} 14. O-O-O {[%emt 0:14:39]} Bd6 {[%emt 0:00:35]} 15. Be5 {[%emt 0:06:16]} ({Better is} 15. Bg5 $14) 15... Ne8 {[%emt 0:23:17]} 16. Rhe1 {[%emt 0:14:33]} Bc7 {[%emt 0:12:47]} 17. c3 {[%emt 0:06:42]} Bd6 {[%emt 0:02:42]} 18. Kc2 {[%emt 0:02:03]} Bc7 {[%emt 0:00:03]} 19. a4 {[%emt 0:03:12]} Bxe5 {[%emt 0:01:31]} 20. dxe5 {[%emt 0:00:33]} Rxd1 {[%emt 0:00:20]} 21. Rxd1 {[%emt 0:00:23]} Nc7 {[%emt 0:00:35]} 22. c4 {[%emt 0:02:37]} a5 {[%emt 0:01:57]} 23. Kc3 {[%emt 0:02:59]} Na6 {[%emt 0:00:57]} 24. Be4 {[%emt 0:00:33]} g6 {[%emt 0:02:48]} 25. Bc2 {[%emt 0:03:58]} Rd8 {[%emt 0:00:52]} 26. Rxd8+ {[%emt 0:00:24]} Kxd8 {[%emt 0:00:01]} 27. Kd4 {[%emt 0:00:18]} Ke7 {[%emt 0:04:39]} 28. f4 {[%emt 0:03:45]} h5 {[%emt 0:02:00]} 29. g4 {[%emt 0:01:35]} hxg4 {[%emt 0:00:09]} 30. hxg4 {[%emt 0:00:01]} Kd7 $11 {[%emt 0:00:57]} 31. Ke4 {[%emt 0:12:52]} 1/2-1/2